bitfinex/quotes_BTCUSD_20251009
["timestamp","ask_amount","ask_price","bid_price","bid_amount"]
[1760027323939,1.96109005,121320.0,121310.0,0.00359613]
[1760027324159,0.80584952,121320.0,121310.0,0.00359613]
[1760027324374,1.47140952,121320.0,121310.0,0.00359613]
[1760027324587,1.47140952,121320.0,121240.0,0.02515716]
[1760027324588,1.67888288,121320.0,121240.0,0.02515716]
[1760027324802,0.42809792,121260.0,121240.0,0.00055187]
[1760027325019,0.03911752,121250.0,121240.0,0.00055187]
[1760027325244,0.34102597,121250.0,121240.0,0.00055187]
[1760027325452,0.53894845,121250.0,121240.0,0.00055187]
[1760027326081,1.21336479,121250.0,121240.0,0.00055187]
[1760027326292,1.45044479,121250.0,121240.0,0.00055187]
[1760027326736,1.45144479,121250.0,121240.0,0.00055187]
[1760027327166,1.88054271,121250.0,121240.0,0.00055187]
[1760027327614,1.66877746,121250.0,121240.0,0.00055187]
[1760027327829,1.39275051,121250.0,121240.0,0.00055187]
[1760027328457,1.82084843,121250.0,121240.0,0.00055187]
[1760027329809,1.85100033,121250.0,121240.0,0.00055187]
[1760027330013,2.27921825,121250.0,121240.0,0.00055187]
[1760027330231,2.35921505,121250.0,121240.0,0.00055187]
[1760027331078,2.12201505,121250.0,121240.0,0.00055187]
[1760027331283,2.35937505,121250.0,121240.0,0.00055187]
[1760027331510,2.35937505,121250.0,121240.0,0.00415996]
[1760027331718,1.93143713,121250.0,121240.0,0.00415996]
[1760027332739,1.69407713,121250.0,121240.0,0.00415996]
[1760027332963,1.82120843,121250.0,121240.0,0.00415996]
[1760027333582,0.24385206,121250.0,121240.0,0.16912201]
[1760027333791,0.48129206,121250.0,121240.0,0.20962201]
[1760027333997,0.71023051,121250.0,121240.0,0.16912201]
[1760027334203,0.38703051,121250.0,121240.0,0.16912201]
[1760027334414,0.71023051,121250.0,121240.0,0.16912201]
[1760027334626,0.54528206,121250.0,121240.0,0.16912201]
[1760027334835,0.79026731,121250.0,121240.0,0.16912201]
[1760027335040,0.30207886,121250.0,121240.0,0.16912201]
[1760027335253,0.38783886,121250.0,121240.0,0.16912201]
[1760027335454,0.62523886,121250.0,121240.0,0.16912201]
[1760027337481,0.38783886,121250.0,121240.0,0.16912201]
[1760027337643,0.62523886,121250.0,121240.0,0.16912201]
[1760027338061,0.48117206,121250.0,121240.0,0.16912201]
[1760027338461,0.54516206,121250.0,121240.0,0.16912201]
[1760027339111,0.39541206,121250.0,121240.0,0.20962201]
[1760027339292,0.16073,121250.0,121240.0,0.24190201]
[1760027339483,0.39797,121250.0,121240.0,0.24190201]
[1760027339686,0.16073,121250.0,121240.0,0.24190201]
[1760027339894,0.39797,121250.0,121240.0,0.24190201]
[1760027340524,0.31217,121250.0,121240.0,0.24190201]
[1760027340747,0.07497,121250.0,121240.0,0.24190201]
[1760027341031,0.31217,121250.0,121240.0,0.24190201]
[1760027341329,0.07497,121250.0,121240.0,0.24190201]
[1760027341567,0.31217,121250.0,121240.0,0.24190201]
[1760027343100,0.07497,121250.0,121240.0,0.16912201]
[1760027343490,0.31209,121250.0,121240.0,0.16912201]
[1760027344629,0.13896,121250.0,121240.0,0.16912201]
[1760027344854,0.44195851,121250.0,121240.0,0.16912201]
[1760027345061,0.37608,121250.0,121240.0,0.16912201]
[1760027345239,0.13896,121250.0,121240.0,0.16912201]
[1760027345456,0.37608,121250.0,121240.0,0.16912201]
[1760027345690,0.07497,121250.0,121240.0,0.16912201]
[1760027345905,0.002,121250.0,121240.0,0.30585201]
[1760027346120,0.23912,121250.0,121240.0,0.30585201]
[1760027346343,0.28008,121250.0,121240.0,0.24190201]
[1760027346556,0.20163751,121250.0,121240.0,0.16912201]
[1760027346774,0.37608,121250.0,121240.0,0.16912201]
[1760027346980,0.31209,121250.0,121240.0,0.16912201]
[1760027347388,0.37608,121250.0,121240.0,0.16912201]
[1760027348052,0.13896,121250.0,121240.0,0.16912201]
[1760027348256,0.31209,121250.0,121240.0,0.20962201]
[1760027349724,0.31209,121250.0,121240.0,0.23976201]
[1760027350350,0.002,121250.0,121240.0,0.30250201]
[1760027350978,0.002,121250.0,121240.0,0.38562407]
[1760027351389,0.001,121250.0,121240.0,0.38562407]
[1760027351602,0.18448,121260.0,121250.0,0.16494845]
[1760027351820,0.13201249,121290.0,121280.0,0.16490765]
[1760027352004,0.67955095,121290.0,121280.0,0.16490765]
[1760027352160,0.73972095,121290.0,121280.0,0.16490765]
[1760027352532,0.76183734,121290.0,121280.0,0.16490765]
[1760027353175,0.76383734,121290.0,121280.0,0.16505952]
[1760027354035,0.60671414,121290.0,121280.0,0.00015187]
[1760027354231,0.851495,121290.0,121280.0,0.00015187]
[1760027354658,0.853495,121290.0,121280.0,0.00015187]
[1760027355079,0.853495,121290.0,121280.0,0.16505952]
[1760027356333,0.22559415,121290.0,121280.0,0.20525952]
[1760027356530,0.7133282,121290.0,121280.0,0.16505952]
[1760027356791,0.7734982,121290.0,121280.0,0.16505952]
[1760027357432,0.7714982,121290.0,121280.0,0.16505952]
[1760027357629,0.7724982,121290.0,121280.0,0.16505952]
[1760027357954,0.850495,121290.0,121280.0,0.16505952]
[1760027358644,0.851495,121290.0,121280.0,0.16505952]
[1760027358863,0.851495,121290.0,121280.0,0.00015187]
[1760027359109,1.38151292,121290.0,121280.0,0.00015187]
[1760027359367,1.62696506,121290.0,121280.0,0.00015187]
[1760027359584,1.67119785,121290.0,121280.0,0.00015187]
[1760027359800,1.67186122,121290.0,121280.0,0.00015187]
[1760027360431,1.43478122,121290.0,121280.0,0.00015187]
[1760027360653,1.72186122,121290.0,121280.0,0.00015187]
[1760027362328,1.67762843,121290.0,121280.0,0.00015187]
[1760027362939,1.67762843,121290.0,121280.0,0.00169768]
[1760027363359,1.72205288,121290.0,121280.0,0.00169768]
[1760027363974,2.06513288,121290.0,121280.0,0.00169768]
[1760027364398,2.09475363,121290.0,121280.0,0.00169768]
[1760027365406,2.05032918,121290.0,121280.0,0.00169768]
[1760027366245,1.81324918,121290.0,121280.0,0.00169768]
[1760027366467,2.05032918,121290.0,121280.0,0.00169768]
[1760027367311,1.98679196,121290.0,121280.0,0.00169768]
[1760027367530,2.07255196,121290.0,121280.0,0.00169768]
[1760027367749,0.94838214,121290.0,121280.0,0.00169768]
[1760027368378,0.90338265,121290.0,121280.0,0.16660533]
[1760027368588,1.25222585,121290.0,121280.0,0.16660533]
[1760027368792,0.89431816,121290.0,121280.0,0.20680533]
[1760027369042,0.46547816,121290.0,121280.0,0.20680533]
[1760027369211,0.50123816,121290.0,121280.0,0.20680533]
[1760027369409,0.17839816,121290.0,121280.0,0.20680533]
[1760027369639,0.48352206,121290.0,121280.0,0.20680533]
[1760027369865,0.66619383,121290.0,121280.0,0.20680533]
[1760027370070,0.66619383,121290.0,121280.0,0.16660533]
[1760027370273,0.72636383,121290.0,121280.0,0.16660533]
[1760027371355,0.70858611,121290.0,121280.0,0.16660533]
[1760027371937,0.22085206,121290.0,121280.0,0.16660533]
[1760027372195,0.3248,121290.0,121280.0,0.29968533]
[1760027372404,0.002,121290.0,121280.0,0.29968533]
[1760027372854,0.23904,121290.0,121280.0,0.29968533]
[1760027373390,0.28159,121290.0,121280.0,0.23694533]
[1760027373643,0.28059,121290.0,121280.0,0.23694533]
[1760027373815,0.3126,121290.0,121280.0,0.23694533]
[1760027378139,0.24045405,121290.0,121280.0,0.19674533]
[1760027378421,0.58995657,121290.0,121280.0,0.16660533]
[1760027380180,0.35291657,121290.0,121280.0,0.16660533]
[1760027380385,0.35291657,121290.0,121280.0,0.00169768]
[1760027380386,1.20622395,121290.0,121280.0,0.00169768]
[1760027380805,0.67303863,121290.0,121280.0,0.00169768]
[1760027381813,0.6884644,121290.0,121280.0,0.00169768]
[1760027383223,0.67303863,121290.0,121280.0,0.00169768]
[1760027383642,1.54622395,121290.0,121280.0,0.00169768]
[1760027383893,1.32464993,121290.0,121280.0,0.00169768]
[1760027384022,1.56164993,121290.0,121280.0,0.00169768]
[1760027384431,1.56164983,121290.0,121280.0,0.00169768]
[1760027384647,1.99044983,121290.0,121280.0,0.00169768]
[1760027384850,1.32464983,121290.0,121280.0,0.00169768]
[1760027385062,1.99144983,121290.0,121280.0,0.00169768]
[1760027386140,1.99244983,121290.0,121280.0,0.00169768]
[1760027386343,1.75544983,121290.0,121280.0,0.00169768]
[1760027386548,1.99244983,121290.0,121280.0,0.00169768]
[1760027387655,2.04244983,121290.0,121280.0,0.00169768]
[1760027387856,2.04244911,121290.0,121280.0,0.00169768]
[1760027388269,1.61364911,121290.0,121280.0,0.00169768]
[1760027388468,2.02702395,121290.0,121280.0,0.00169768]
[1760027388791,0.77574611,121290.0,121280.0,0.00169768]
[1760027389013,0.29644206,121290.0,121280.0,0.16660533]
[1760027389227,0.13776,121290.0,121280.0,0.29868533]
[1760027389443,0.002,121290.0,121280.0,0.29868533]
[1760027389648,0.239,121290.0,121280.0,0.29868533]
[1760027389861,0.002,121290.0,121280.0,0.29868533]
[1760027390076,0.239,121290.0,121280.0,0.29868533]
[1760027392263,0.002,121290.0,121280.0,0.29868533]
[1760027392483,0.239,121290.0,121280.0,0.29868533]
[1760027392706,0.002,121290.0,121280.0,0.29868533]
[1760027392930,0.239,121290.0,121280.0,0.29868533]
[1760027393156,0.23896,121290.0,121280.0,0.29868533]
[1760027393618,0.23796,121290.0,121280.0,0.29868533]
[1760027394024,0.23696,121290.0,121280.0,0.29868533]
[1760027395301,0.37201,121310.0,121300.0,0.16488046]
[1760027395502,0.41345,121310.0,121300.0,0.16488046]
[1760027395817,0.73613,121310.0,121300.0,0.16488046]
[1760027395999,0.80101,121310.0,121300.0,0.16488046]
[1760027396650,0.80201,121310.0,121300.0,0.16488046]
[1760027396798,0.80301,121310.0,121300.0,0.16488046]
[1760027397476,0.48033,121310.0,121300.0,0.16488046]
[1760027397656,0.41545,121310.0,121300.0,0.20443046]
[1760027397993,0.73813,121310.0,121300.0,0.20443046]
[1760027398808,0.80301,121310.0,121300.0,0.16488046]
[1760027399432,0.48033,121310.0,121300.0,0.16488046]
[1760027399680,0.80301,121310.0,121300.0,0.16488046]
[1760027399894,1.01567315,121310.0,121300.0,0.16488046]
[1760027400089,0.77871315,121310.0,121290.0,0.20403608]
[1760027400307,1.01563315,121310.0,121300.0,0.16488046]
[1760027400715,1.01563315,121310.0,121290.0,0.19559189]
[1760027400921,0.95075315,121310.0,121300.0,0.16539565]
[1760027401358,0.94975315,121310.0,121300.0,0.16539565]
[1760027401566,0.86083521,121310.0,121300.0,0.00051519]
[1760027401783,1.39302053,121310.0,121300.0,0.00051519]
[1760027402001,1.4385944,121310.0,121300.0,0.00051519]
[1760027402209,1.70798725,121310.0,121300.0,0.00051519]
[1760027402391,1.72675428,121310.0,121300.0,0.00051519]
[1760027402659,0.93117051,121310.0,121300.0,0.00051519]
[1760027402893,2.04427583,121310.0,121300.0,0.00051519]
[1760027403111,1.37863583,121310.0,121300.0,0.00051519]
[1760027403316,2.04427583,121310.0,121300.0,0.00051519]
[1760027403523,1.37863583,121310.0,121300.0,0.00051519]
[1760027403758,2.04527583,121310.0,121300.0,0.00051519]
[1760027404403,1.18180036,121310.0,121300.0,0.00051519]
[1760027404627,0.65217206,121310.0,121300.0,0.16539565]
[1760027404855,0.88909206,121310.0,121300.0,0.16539565]
[1760027405066,0.56345206,121310.0,121300.0,0.16539565]
[1760027405276,0.16117,121310.0,121300.0,0.20494565]
[1760027405490,0.16117,121310.0,121300.0,0.29747565]
[1760027405491,0.32464,121310.0,121300.0,0.29747565]
[1760027405694,0.08772,121310.0,121300.0,0.29747565]
[1760027405901,0.32464,121310.0,121300.0,0.29747565]
[1760027406347,0.46182,121310.0,121300.0,0.16539565]
[1760027407604,0.08772,121310.0,121300.0,0.29747565]
[1760027408050,0.0743,121310.0,121300.0,0.19610565]
[1760027408258,0.39694,121310.0,121300.0,0.23565565]
[1760027408469,0.0743,121310.0,121300.0,0.23565565]
[1760027408712,0.31122,121310.0,121300.0,0.23565565]
[1760027408916,0.51911634,121310.0,121300.0,0.16539565]
[1760027409349,0.0743,121310.0,121300.0,0.16539565]
[1760027409526,0.39694,121310.0,121300.0,0.20494565]
[1760027409763,0.39694,121310.0,121300.0,0.16539565]
[1760027410007,0.46117,121310.0,121300.0,0.16539565]
[1760027411557,0.46113,121310.0,121300.0,0.16539565]
[1760027411767,0.62599687,121310.0,121300.0,0.16539565]
[1760027411965,0.38911687,121310.0,121300.0,0.16539565]
[1760027412167,0.62599687,121310.0,121300.0,0.16539565]
[1760027412588,0.37541,121310.0,121300.0,0.16539565]
[1760027413008,0.46113,121310.0,121300.0,0.16539565]
[1760027413214,0.50968969,121310.0,121300.0,0.16539565]
[1760027414100,0.67455656,121310.0,121300.0,0.16539565]
[1760027414305,0.22425,121310.0,121300.0,0.16539565]
[1760027414514,0.3969,121310.0,121300.0,0.16539565]
[1760027414731,1.24230425,121310.0,121300.0,0.00051519]
[1760027414935,0.70911893,121310.0,121300.0,0.00051519]
[1760027415373,1.34542425,121310.0,121300.0,0.00051519]
[1760027415592,1.69245295,121310.0,121300.0,0.00051519]
[1760027415837,1.71721448,121310.0,121300.0,0.00051519]
[1760027417391,1.54528261,121310.0,121300.0,0.00051519]
[1760027417626,1.78646639,121310.0,121300.0,0.00051519]
[1760027417835,2.47238639,121310.0,121300.0,0.00051519]
[1760027418255,1.46286639,121310.0,121300.0,0.00051519]
[1760027418473,2.47146639,121310.0,121300.0,0.00051519]
[1760027419320,2.23358639,121310.0,121300.0,0.00051519]
[1760027419504,2.47046639,121310.0,121300.0,0.00051519]
[1760027419710,2.47246639,121310.0,121300.0,0.00051519]
[1760027420138,2.42191639,121310.0,121300.0,0.00051519]
[1760027420339,2.42191771,121310.0,121300.0,0.00051519]
[1760027420581,2.42291771,121310.0,121300.0,0.00051519]
[1760027420808,2.42491771,121310.0,121300.0,0.00051519]
[1760027421320,2.18803771,121310.0,121300.0,1e-08]
[1760027421527,2.42491771,121310.0,121300.0,1e-08]
[1760027422114,2.44265847,121310.0,121300.0,1e-08]
[1760027422478,1.43405847,121310.0,121300.0,1e-08]
[1760027422677,2.44265847,121310.0,121300.0,1e-08]
[1760027423717,2.28073482,121310.0,121300.0,1e-08]
[1760027424000,2.51761482,121310.0,121300.0,1e-08]
[1760027424163,1.85201482,121310.0,121300.0,1e-08]
[1760027424330,2.51761482,121310.0,121300.0,1e-08]
[1760027425538,0.9758295,121310.0,121300.0,1e-08]
[1760027425736,2.51003733,121310.0,121300.0,1e-08]
[1760027425957,2.27315733,121310.0,121300.0,1e-08]
[1760027426080,2.51003733,121310.0,121300.0,1e-08]
[1760027426505,2.27315733,121310.0,121300.0,1e-08]
[1760027426709,2.51003733,121310.0,121300.0,1e-08]
[1760027428177,2.49229847,121310.0,121300.0,1e-08]
[1760027428575,1.48357847,121310.0,121300.0,1e-08]
[1760027428807,1.2871618,121310.0,121300.0,1e-08]
[1760027429156,2.39722712,121310.0,121300.0,1e-08]
[1760027429377,2.05418712,121310.0,121300.0,1e-08]
[1760027431348,1.81730712,121310.0,121300.0,1e-08]
[1760027431590,2.05418712,121310.0,121300.0,1e-08]
[1760027433759,1.38850712,121310.0,121300.0,1e-08]
[1760027433968,1.5210018,121310.0,121300.0,1e-08]
[1760027434577,1.81730712,121310.0,121300.0,1e-08]
[1760027434791,2.05418712,121310.0,121300.0,1e-08]
[1760027435207,1.84745902,121310.0,121300.0,1e-08]
[1760027435713,2.08433902,121310.0,121300.0,1e-08]
[1760027435922,1.84745902,121310.0,121300.0,1e-08]
[1760027436126,2.08433902,121310.0,121300.0,1e-08]
[1760027437564,1.97943829,121310.0,121300.0,1e-08]
[1760027437992,1.97939829,121310.0,121300.0,1e-08]
[1760027439244,1.5511137,121310.0,121300.0,1e-08]
[1760027439450,1.97939829,121310.0,121300.0,1e-08]
[1760027440045,1.28360639,121310.0,121300.0,1e-08]
[1760027440260,1.71240639,121310.0,121300.0,1e-08]
[1760027440480,1.94924639,121310.0,121300.0,1e-08]
[1760027443588,1.1983618,121310.0,121300.0,1e-08]
[1760027443807,0.8553218,121310.0,121300.0,1e-08]
[1760027444026,1.71345031,121310.0,121300.0,1e-08]
[1760027444241,1.47661031,121310.0,121300.0,1e-08]
[1760027444452,1.71345031,121310.0,121300.0,1e-08]
[1760027445330,1.77816093,121310.0,121300.0,1e-08]
[1760027445547,2.09499773,121310.0,121300.0,1e-08]
[1760027445914,2.2307499,121310.0,121300.0,1e-08]
[1760027446137,2.16603928,121310.0,121300.0,1e-08]
[1760027447519,2.19080079,121310.0,121300.0,1e-08]
[1760027448011,2.19080076,121310.0,121300.0,1e-08]
[1760027448758,2.190801,121310.0,121300.0,1e-08]
[1760027448950,2.1730392,121310.0,121300.0,1e-08]
[1760027449159,2.19080121,121310.0,121300.0,1e-08]
[1760027449581,1.58769997,121310.0,121300.0,1e-08]
[1760027449782,2.19080121,121310.0,121300.0,1e-08]
[1760027449928,2.49235183,121310.0,121300.0,1e-08]
[1760027450140,2.25551183,121310.0,121300.0,1e-08]
[1760027450349,2.49665566,121310.0,121300.0,1e-08]
[1760027452465,2.60285566,121310.0,121300.0,1e-08]
[1760027452643,2.83969566,121310.0,121300.0,1e-08]
[1760027452861,1.83101566,121310.0,121300.0,1e-08]
[1760027453089,2.83969566,121310.0,121300.0,1e-08]
[1760027453316,2.88921566,121310.0,121300.0,1e-08]
[1760027453749,2.65237566,121310.0,121300.0,1e-08]
[1760027453952,2.91138924,121310.0,121300.0,1e-08]
[1760027454166,3.01138923,121310.0,121300.0,1e-08]
[1760027454444,3.04095401,121310.0,121300.0,1e-08]
[1760027454653,2.80411401,121310.0,121300.0,1e-08]
[1760027454855,3.04095401,121310.0,121300.0,1e-08]
[1760027455707,2.94095402,121310.0,121300.0,1e-08]
[1760027456123,3.04095401,121310.0,121300.0,1e-08]
[1760027457253,2.94095402,121310.0,121300.0,1e-08]
[1760027457390,3.04095401,121310.0,121300.0,1e-08]
[1760027457870,2.80411401,121310.0,121300.0,1e-08]
[1760027458045,3.04095401,121310.0,121300.0,1e-08]
[1760027458298,2.80411401,121310.0,121300.0,1e-08]
[1760027458498,3.04095401,121310.0,121300.0,1e-08]
[1760027459509,2.80411401,121310.0,121300.0,1e-08]
[1760027459700,2.8540138,121310.0,121300.0,1e-08]
[1760027459902,2.96595401,121310.0,121300.0,1e-08]
[1760027460146,2.057274,121310.0,121300.0,1e-08]
[1760027460329,3.066034,121310.0,121300.0,1e-08]
[1760027461248,1.15262214,121310.0,121300.0,1e-08]
[1760027461451,2.35090504,121310.0,121300.0,1e-08]
[1760027461651,2.58774504,121310.0,121300.0,1e-08]
[1760027462082,2.35090504,121310.0,121300.0,1e-08]
[1760027462288,2.58774504,121310.0,121300.0,1e-08]
[1760027462462,2.35090504,121310.0,121300.0,1e-08]
[1760027462649,2.58774504,121310.0,121300.0,1e-08]
[1760027463202,2.65245566,121310.0,121300.0,1e-08]
[1760027463377,2.88929566,121310.0,121300.0,1e-08]
[1760027464486,2.65212879,121310.0,121300.0,1e-08]
[1760027464671,2.59592566,121310.0,121300.0,1e-08]
[1760027464815,2.83276566,121310.0,121300.0,1e-08]
[1760027467313,2.59592566,121310.0,121300.0,1e-08]
[1760027467519,2.83276566,121310.0,121300.0,1e-08]
[1760027467749,0.8092051,121310.0,121300.0,1e-08]
[1760027467968,1.11689457,121310.0,121300.0,1e-08]
[1760027468187,1.43213347,121310.0,121300.0,1e-08]
[1760027468412,1.32897347,121310.0,121300.0,1e-08]
[1760027468612,1.66897347,121310.0,121300.0,1e-08]
[1760027468816,1.74897027,121310.0,121300.0,1e-08]
[1760027469032,1.81368089,121310.0,121300.0,1e-08]
[1760027469239,2.05052089,121310.0,121300.0,1e-08]
[1760027469445,2.05051785,121310.0,121300.0,1e-08]
[1760027469692,1.87578244,121310.0,121300.0,1e-08]
[1760027470274,1.86807615,121310.0,121300.0,1e-08]
[1760027470476,1.66138805,121310.0,121300.0,1e-08]
[1760027470684,2.41699355,121310.0,121300.0,1e-08]
[1760027470894,1.98862772,121310.0,121300.0,1e-08]
[1760027471111,1.98862848,121310.0,121300.0,1e-08]
[1760027471910,1.75178848,121310.0,121300.0,1e-08]
[1760027472117,1.98862848,121310.0,121300.0,1e-08]
[1760027472290,1.90334265,121310.0,121300.0,1e-08]
[1760027472494,2.33170848,121310.0,121300.0,1e-08]
[1760027472758,2.31394951,121310.0,121300.0,1e-08]
[1760027473250,1.95545565,121310.0,121300.0,1e-08]
[1760027473669,1.43938542,121310.0,121300.0,1e-08]
[1760027473871,1.86775125,121310.0,121300.0,1e-08]
[1760027474077,1.63091125,121310.0,121300.0,1e-08]
[1760027474211,1.86775125,121310.0,121300.0,1e-08]
[1760027475284,1.87546433,121310.0,121300.0,1e-08]
[1760027475519,1.95542113,121310.0,121300.0,1e-08]
[1760027478073,1.98018223,121310.0,121300.0,1e-08]
[1760027479246,1.74338223,121310.0,121300.0,1e-08]
[1760027479465,1.98018223,121310.0,121300.0,1e-08]
[1760027481458,1.74338223,121310.0,121300.0,1e-08]
[1760027481665,1.99560366,121310.0,121300.0,1e-08]
[1760027481867,1.88450576,121310.0,121300.0,1e-08]
[1760027482824,1.64770576,121310.0,121300.0,1e-08]
[1760027483035,1.88450576,121310.0,121300.0,1e-08]
[1760027483248,1.64770576,121310.0,121300.0,1e-08]
[1760027483477,1.88450576,121310.0,121300.0,1e-08]
[1760027483684,1.86908433,121310.0,121300.0,1e-08]
[1760027483890,2.13208753,121310.0,121300.0,1e-08]
[1760027484098,1.46648753,121310.0,121300.0,1e-08]
[1760027484307,1.13886985,121310.0,121300.0,1e-08]
[1760027484514,1.30344862,121310.0,121300.0,1e-08]
[1760027484753,1.7478608,121310.0,121300.0,1e-08]
[1760027485347,1.77099471,121310.0,121300.0,1e-08]
[1760027485551,1.53419471,121310.0,121300.0,1e-08]
[1760027485757,1.7478608,121310.0,121300.0,1e-08]
[1760027486199,1.3190608,121310.0,121300.0,1e-08]
[1760027486413,1.0822608,121310.0,121300.0,1e-08]
[1760027486618,0.93329672,121310.0,121300.0,1e-08]
[1760027486820,0.90853562,121310.0,121300.0,1e-08]
[1760027487025,1.24853562,121310.0,121300.0,1e-08]
[1760027487234,0.90853562,121310.0,121300.0,1e-08]
[1760027487440,1.67690145,121310.0,121300.0,1e-08]
[1760027488279,1.52009825,121310.0,121300.0,1e-08]
[1760027488485,1.75689825,121310.0,121300.0,1e-08]
[1760027490529,1.52009825,121310.0,121300.0,1e-08]
[1760027490767,1.75685825,121310.0,121300.0,1e-08]
[1760027491362,1.6229115,121310.0,121300.0,1e-08]
[1760027491574,2.28803733,121310.0,121300.0,1e-08]
[1760027491788,2.36417873,121310.0,121300.0,1e-08]
[1760027492000,2.46417872,121310.0,121300.0,1e-08]
[1760027492213,0.50493485,121260.0,121250.0,0.06619503]
[1760027492469,0.82745485,121260.0,121250.0,0.06634693]
[1760027492887,0.82745485,121260.0,121250.0,0.0001519]
[1760027493867,0.82745485,121260.0,121250.0,0.0391319]
[1760027494079,0.82745485,121260.0,121250.0,0.0001519]
[1760027494548,0.99057371,121260.0,121250.0,0.0001519]
[1760027495816,0.82481691,121260.0,121250.0,0.0391319]
[1760027496048,1.25361691,121260.0,121250.0,0.0688219]
[1760027496239,1.25361691,121260.0,121250.0,0.0001519]
[1760027497079,1.68198274,121260.0,121250.0,0.0001519]
[1760027497613,1.78738579,121260.0,121250.0,0.0001519]
[1760027497816,1.86738259,121260.0,121250.0,0.0001519]
[1760027498045,1.86738259,121260.0,121250.0,0.00272899]
[1760027498436,1.86838259,121260.0,121250.0,0.00272899]
[1760027498850,1.63162259,121260.0,121250.0,0.00272899]
[1760027499057,1.86838259,121260.0,121250.0,0.00272899]
[1760027500316,1.33461371,121260.0,121250.0,0.00272899]
[1760027500528,1.86838259,121260.0,121250.0,0.00272899]
[1760027502600,1.86842259,121260.0,121250.0,0.00272899]
[1760027504874,1.91794259,121260.0,121250.0,0.00272899]
[1760027505090,1.86842259,121260.0,121250.0,0.00272899]
[1760027506889,1.63162259,121260.0,121250.0,0.00272899]
[1760027507098,1.86842259,121260.0,121250.0,0.00272899]
[1760027507568,1.67715954,121260.0,121250.0,0.00272899]
[1760027507781,1.21816205,121260.0,121250.0,0.00272899]
[1760027508009,1.98869093,121260.0,121250.0,0.00272899]
[1760027508453,1.32313093,121260.0,121250.0,0.00272899]
[1760027508631,1.98877093,121260.0,121250.0,0.00272899]
[1760027508859,1.32313093,121260.0,121250.0,0.00272899]
[1760027509093,1.98881093,121260.0,121250.0,0.00272899]
[1760027509693,1.98717026,121260.0,121250.0,0.00272899]
[1760027510278,1.32149026,121260.0,121250.0,0.00272899]
[1760027510483,1.98713026,121260.0,121250.0,0.00272899]
[1760027510685,1.02069268,121260.0,121250.0,0.00272899]
[1760027511030,1.25745268,121260.0,121250.0,0.00272899]
[1760027511275,1.29321268,121260.0,121250.0,0.00272899]
[1760027512574,1.26848129,121260.0,121250.0,0.00272899]
[1760027513476,1.26844129,121260.0,121250.0,0.00272899]
[1760027513706,1.34843809,121260.0,121250.0,0.00272899]
[1760027513993,1.39843809,121260.0,121250.0,0.00272899]
[1760027514232,0.73279809,121260.0,121250.0,0.00272899]
[1760027514405,1.39843809,121260.0,121250.0,0.00272899]
[1760027515080,1.69544697,121260.0,121250.0,0.00272899]
[1760027515288,1.06633624,121260.0,121250.0,0.04404899]
[1760027515499,1.30309624,121260.0,121250.0,0.07472899]
[1760027516117,0.63741624,121260.0,121250.0,0.07472899]
[1760027516336,0.051,121260.0,121250.0,0.23967744]
[1760027516544,0.48845485,121260.0,121250.0,0.29710744]
[1760027516778,0.50593485,121260.0,121250.0,0.29710744]
[1760027517011,0.82845485,121260.0,121250.0,0.29710744]
[1760027517502,0.59169485,121260.0,121250.0,0.23967744]
[1760027517730,0.62987382,121260.0,121250.0,0.00272899]
[1760027517926,0.86663382,121260.0,121250.0,0.00272899]
[1760027518361,0.82845485,121260.0,121250.0,0.04404899]
[1760027518778,0.82845485,121260.0,121250.0,0.00272899]
[1760027518982,0.82845485,121260.0,121250.0,0.20899744]
[1760027519588,0.82845485,121260.0,121250.0,0.04404899]
[1760027520023,0.82845485,121260.0,121250.0,0.00272899]
[1760027520227,0.90845165,121260.0,121250.0,0.00272899]
[1760027521114,1.08933431,121260.0,121250.0,0.00272899]
[1760027521357,1.17245637,121260.0,121250.0,0.00272899]
[1760027521577,1.43470649,121260.0,121250.0,0.00272899]
[1760027522070,1.22809839,121260.0,121250.0,0.00272899]
[1760027522297,1.68032574,121260.0,121250.0,1e-08]
[1760027522517,1.75683786,121260.0,121250.0,1e-08]
[1760027522736,1.96399308,121260.0,121250.0,1e-08]
[1760027522961,1.30103486,121260.0,121250.0,1e-08]
[1760027523213,2.47526221,121260.0,121250.0,1e-08]
[1760027523445,2.72367915,121260.0,121250.0,1e-08]
[1760027523671,2.45321606,121260.0,121250.0,1e-08]
[1760027523958,2.54708323,121260.0,121250.0,1e-08]
[1760027524178,2.31036323,121260.0,121250.0,1e-08]
[1760027524407,2.51751845,121260.0,121250.0,1e-08]
[1760027524628,2.28079845,121260.0,121250.0,1e-08]
[1760027524855,2.38079844,121260.0,121250.0,1e-08]
[1760027525080,2.56803844,121260.0,121250.0,1e-08]
[1760027525319,2.33127844,121260.0,121250.0,1e-08]
[1760027525562,2.56799844,121260.0,121250.0,1e-08]
[1760027527460,2.46799845,121260.0,121250.0,1e-08]
[1760027527696,2.56799844,121260.0,121250.0,1e-08]
[1760027528672,2.46799845,121260.0,121250.0,1e-08]
[1760027528873,2.56799844,121260.0,121250.0,1e-08]
[1760027530431,2.56803844,121260.0,121250.0,1e-08]
[1760027530644,2.33127844,121260.0,121250.0,1e-08]
[1760027530847,0.53510035,121250.0,121240.0,1e-08]
[1760027531033,1.50340014,121250.0,121240.0,0.00015202]
[1760027531264,1.54774731,121250.0,121240.0,1e-08]
[1760027531705,1.57252406,121250.0,121240.0,1e-08]
[1760027531929,1.54004699,121250.0,121240.0,1e-08]
[1760027532147,1.06913278,121220.0,121210.0,0.0004]
[1760027532364,1.62543799,121220.0,121210.0,0.0004]
[1760027533004,1.710689,121220.0,121210.0,0.0004]
[1760027533443,1.390129,121220.0,121210.0,0.0004]
[1760027533668,2.3916826,121220.0,121210.0,0.0004]
[1760027533885,1.3827226,121220.0,121210.0,0.0004]
[1760027534091,2.0484826,121220.0,121210.0,0.0004]
[1760027534537,2.0514826,121220.0,121210.0,0.0004]
[1760027535060,1.6742554,121220.0,121210.0,0.0004]
[1760027535264,1.62194051,121220.0,121210.0,0.0004]
[1760027535681,1.31703416,121220.0,121210.0,0.0004]
[1760027535888,0.71549355,121220.0,121210.0,0.20286288]
[1760027536123,0.85135611,121220.0,121210.0,0.23085288]
[1760027536321,1.19135611,121220.0,121210.0,0.23085288]
[1760027536522,1.18935611,121220.0,121210.0,0.23085288]
[1760027536849,0.99354744,121220.0,121210.0,0.23085288]
[1760027537063,0.01856684,121220.0,121210.0,0.28902288]
[1760027537267,0.50311611,121220.0,121210.0,0.28902288]
[1760027537460,0.33812684,121220.0,121210.0,0.28902288]
[1760027537668,0.25332684,121220.0,121210.0,0.28902288]
[1760027537904,0.33912684,121220.0,121210.0,0.28902288]